fUSD/lending_fUSD_20241121
["ID","MTS","AMOUNT","RATE_DAILY","PERIOD"]
[342896442,1732198249625,-500.0,0.00041369,18]
[342896444,1732198249636,-609.93,0.00041369,18]
[342896446,1732198249646,-548.46,0.00041369,18]
[342896448,1732198249656,-500.0,0.00041369,18]
[342896450,1732198249667,-697.31,0.00041369,18]
[342896452,1732198249677,-500.0,0.00041369,18]
[342896454,1732198249687,-612.55063648,0.00041369,18]
[342896456,1732198249701,-500.0,0.00041369,18]
[342896458,1732198249712,-589.61,0.00041369,18]
[342896460,1732198249722,-500.0,0.00041369,18]
[342896462,1732198249733,-1000.0,0.00041369,18]
[342896464,1732198249743,-500.0,0.00041369,18]
[342896466,1732198249753,-500.0,0.00041369,18]
[342896468,1732198249763,-52.23657989,0.00041369,18]
[342896471,1732198249777,-447.76342011,0.00041369,18]
[342896472,1732198249787,-1650.49,0.00041369,18]
[342896473,1732198249796,-1156.38,0.00041369,18]
[342896474,1732198249807,-500.0,0.00041369,18]
[342896475,1732198249816,-500.0,0.00041369,18]
[342896476,1732198249826,-500.0,0.00041369,18]
[342896477,1732198249836,-151.0,0.00041369,14]
[342896478,1732198249846,-500.0,0.00041369,18]
[342896479,1732198249855,-500.0,0.00041369,18]
[342896480,1732198249865,-1357.84,0.00041369,18]
[342896481,1732198249875,-500.0,0.00041369,18]
[342896482,1732198249885,-445.09490027,0.00041369,18]
[342896483,1732198249894,-500.0,0.00041369,18]
[342896485,1732198249903,-500.0,0.00041369,18]
[342896487,1732198249913,-500.0,0.00041369,18]
[342896489,1732198249923,-500.0,0.00041369,18]
[342896491,1732198249933,-500.0,0.00041369,18]
[342896493,1732198249944,-500.0,0.00041369,18]
[342896495,1732198249961,-616.16,0.00041369,18]
[342896497,1732198249971,-1005.71,0.00041369,18]
[342896499,1732198249981,-594.08,0.00041369,18]
[342896501,1732198249991,-500.0,0.00041369,18]
[342896503,1732198250001,-500.0,0.00041369,18]
[342896505,1732198250011,-623.26,0.00041369,18]
[342896507,1732198250020,-500.0,0.00041369,18]
[342896509,1732198250030,-1638.64,0.00041369,18]
[342896511,1732198250040,-500.0,0.00041369,18]
[342896513,1732198250049,-500.0,0.00041369,18]
[342896515,1732198250059,-500.0,0.00041369,18]
[342896517,1732198250068,-373.49670081,0.00041369,18]
[342896519,1732198250078,-1529.9,0.00041369,18]
[342896521,1732198250087,-1444.22,0.00041369,18]
[342896523,1732198250097,-500.0,0.00041369,18]
[342896525,1732198250107,-500.0,0.00041369,18]
[342896527,1732198250117,-684.45,0.00041369,18]
[342896529,1732198250127,-500.0,0.00041369,18]
[342896531,1732198250140,-523.32,0.00041369,18]
[342896533,1732198250151,-603.91,0.00041369,18]
[342896535,1732198250161,-500.0,0.00041369,18]
[342896537,1732198250171,-500.0,0.00041369,18]
[342896539,1732198250183,-151.0,0.00041369,14]
[342896541,1732198250193,-553.51,0.00041369,18]
[342896543,1732198250207,-500.0,0.00041369,18]
[342896546,1732198250217,-500.0,0.00041369,18]
[342896548,1732198250226,-749.19,0.00041369,18]
[342896550,1732198250236,-543.36,0.00041369,18]
[342896552,1732198250246,-617.86,0.00041369,18]
[342896554,1732198250256,-500.0,0.00041369,18]
[342896556,1732198250266,-500.0,0.00041369,18]
[342896558,1732198250276,-708.4,0.00041369,18]
[342896560,1732198250286,-500.0,0.00041369,18]
[342896562,1732198250296,-500.0,0.00041369,18]
[342896564,1732198250305,-746.44,0.00041369,18]
[342896566,1732198250315,-642.5,0.00041369,18]
[342896568,1732198250324,-579.02,0.00041369,18]
[342896570,1732198250334,-471.54085315,0.00041369,18]
[342896611,1732198250721,-1153.52,0.00041095,18]
[342896613,1732198250731,-1447.997694,0.00041342,15]
[342896615,1732198250740,-28.45914685,0.00041369,18]
[342896617,1732198250750,-500.0,0.00041369,18]
[342896619,1732198250759,-500.0,0.00041369,18]
[342896621,1732198250768,-24.65465916,0.00041369,18]
[342896623,1732198250780,-475.34534084,0.00041369,18]
[342896625,1732198250790,-603.76,0.00041369,18]
[342896627,1732198250799,-143.24465916,0.00041369,18]
[342896629,1732198250811,-356.75534084,0.00041369,18]
[342896631,1732198250820,-10.27465917,0.00041369,18]
[342896634,1732198250836,-489.72534083,0.00041369,18]
[342896636,1732198250845,-653.37,0.00041369,18]
[342896638,1732198250854,-500.0,0.00041369,18]
[342896640,1732198250864,-500.0,0.00041369,18]
[342896642,1732198250874,-500.0,0.00041369,18]
[342896644,1732198250883,-500.0,0.00041369,18]
[342896646,1732198250893,-503.97,0.00041369,18]
[342896648,1732198250903,-500.0,0.00041369,18]
[342896650,1732198250913,-1112.97,0.00041369,18]
[342896652,1732198250923,-359.96465917,0.00041369,18]
[342896654,1732198250935,-140.03534083,0.00041369,18]
[342896656,1732198250944,-500.0,0.00041369,18]
[342896658,1732198250955,-500.0,0.00041369,18]
[342896660,1732198250964,-500.0,0.00041369,18]
[342896662,1732198250974,-309.38465917,0.00041369,18]
[342896668,1732198251014,-190.61534083,0.00041369,18]
[342896670,1732198251024,-500.0,0.00041369,18]
[342896672,1732198251033,-500.0,0.00041369,18]
[342896674,1732198251042,-500.0,0.00041369,18]
[342896676,1732198251051,-500.0,0.00041369,18]
[342896678,1732198251061,-529.85,0.00041369,18]
[342896680,1732198251071,-500.0,0.00041369,18]
[342896682,1732198251082,-522.75,0.00041369,18]
[342896684,1732198251091,-500.0,0.00041369,18]
[342896686,1732198251100,-500.0,0.00041369,18]
[342896688,1732198251110,-690.63,0.00041369,18]
[342896690,1732198251119,-500.0,0.00041369,18]
[342896692,1732198251129,-500.0,0.00041369,18]
[342896694,1732198251138,-500.0,0.00041369,18]
[342896696,1732198251148,-1227.47,0.00041369,18]
[342896698,1732198251157,-1896.22,0.00041369,18]
[342896700,1732198251168,-500.0,0.00041369,18]
[342896702,1732198251178,-522.03,0.00041369,18]
[342896704,1732198251188,-1098.36,0.00041369,18]
[342896706,1732198251201,-1290.5,0.00041369,18]
[342896708,1732198251211,-500.0,0.00041369,18]
[342896710,1732198251221,-728.67,0.00041369,18]
[342896712,1732198251231,-500.0,0.00041369,18]
[342896714,1732198251241,-500.0,0.00041369,18]
[342896716,1732198251250,-469.1578551,0.00041369,18]
[342896718,1732198251260,-1692.23,0.00041369,18]
[342896720,1732198251270,-1420.87,0.00041369,18]
[342896722,1732198251281,-500.0,0.00041369,18]
[342896724,1732198251290,-737.7,0.00041369,18]
[342896726,1732198251300,-200.0,0.00041369,7]
[342896728,1732198251310,-500.0,0.00041369,18]
[342896730,1732198251320,-637.47,0.00041369,18]
[342896732,1732198251330,-525.71,0.00041369,18]
[342896733,1732198251339,-500.0,0.00041369,18]
[342896734,1732198251349,-500.0,0.00041369,18]
[342896735,1732198251359,-500.0,0.00041369,18]
[342896736,1732198251369,-500.0,0.00041369,18]
[342896737,1732198251378,-1133.98,0.00041369,18]
[342896738,1732198251388,-997.22,0.00041369,18]
[342896739,1732198251398,-1171.5,0.00041369,18]
[342896740,1732198251408,-662.34,0.00041369,18]
[342896741,1732198251418,-506.85,0.00041369,18]
[342896743,1732198251428,-500.0,0.00041369,18]
[342896745,1732198251438,-869.32,0.00041369,18]
[342896747,1732198251450,-500.0,0.00041369,18]
[342896749,1732198251463,-500.0,0.00041369,18]
[342896751,1732198251473,-500.0,0.00041369,18]
[342896753,1732198251484,-1462.94,0.00041369,18]
[342896755,1732198251494,-500.0,0.00041369,18]
[342896757,1732198251505,-500.0,0.00041369,18]
[342896759,1732198251514,-500.0,0.00041369,18]
[342896761,1732198251523,-500.0,0.00041369,18]
[342896763,1732198251533,-685.49,0.00041369,18]
[342896765,1732198251543,-500.0,0.00041369,18]
[342896767,1732198251553,-937.9,0.00041369,18]
[342896769,1732198251563,-500.0,0.00041369,18]
[342896771,1732198251573,-500.0,0.00041369,18]
[342896773,1732198251582,-808.51,0.00041369,18]
[342896775,1732198251592,-500.0,0.00041369,18]
[342896777,1732198251601,-190.55964696,0.00041369,18]
[342896779,1732198251611,-500.0,0.00041369,18]
[342896781,1732198251621,-864.1,0.00041369,18]
[342896783,1732198251631,-151.0,0.00041369,14]
[342896785,1732198251640,-740.61,0.00041369,18]
[342896787,1732198251650,-2796.91,0.00041369,18]
[342896789,1732198251659,-500.0,0.00041369,18]
[342896791,1732198251669,-500.0,0.00041369,18]
[342896793,1732198251678,-500.0,0.00041369,18]
[342896795,1732198251687,-576.0,0.00041369,18]
[342896797,1732198251698,-602.3,0.00041369,18]
[342896799,1732198251707,-500.0,0.00041369,18]
[342896801,1732198251717,-5319.78,0.00041369,18]
[342896803,1732198251727,-500.0,0.00041369,18]
[342896805,1732198251736,-500.0,0.00041369,18]
[342896807,1732198251746,-1018.8,0.00041369,18]
[342896809,1732198251756,-500.0,0.00041369,18]
[342896811,1732198251765,-500.0,0.00041369,18]
[342896813,1732198251774,-668.07,0.00041369,18]
[342896815,1732198251783,-566.56,0.00041369,7]
[342896817,1732198251792,-500.0,0.00041369,18]
[342896819,1732198251802,-851.24,0.00041369,18]
[342896821,1732198251811,-691.42,0.00041369,18]
[342896823,1732198251821,-653.77,0.00041369,18]
[342896825,1732198251830,-500.0,0.00041369,18]
[342896827,1732198251839,-500.0,0.00041369,18]
[342896829,1732198251848,-527.93,0.00041369,18]
[342896831,1732198251858,-939.36,0.00041369,18]
[342896833,1732198251867,-704.24,0.00041369,18]
[342896835,1732198251877,-3168.81,0.00041369,18]
[342896837,1732198251886,-500.0,0.00041369,18]
[342896847,1732198251969,-500.0,0.00041369,18]
[342896848,1732198251979,-1230.67,0.00041369,18]
[342896850,1732198251988,-513.27,0.00041369,18]
[342896853,1732198251998,-151.0,0.00041369,14]
[342896854,1732198252008,-500.0,0.00041369,18]
[342896856,1732198252018,-700.2,0.00041369,18]
[342896858,1732198252026,-500.0,0.00041369,18]
[342896860,1732198252036,-500.0,0.00041369,18]
[342896862,1732198252045,-500.0,0.00041369,18]
[342896864,1732198252054,-500.0,0.00041369,18]
[342896866,1732198252064,-567.93,0.00041369,18]
[342896868,1732198252073,-4231.69,0.00041369,18]
[342896870,1732198252083,-500.0,0.00041369,18]
[342896872,1732198252092,-500.0,0.00041369,18]
[342896874,1732198252101,-636.7343793,0.00041369,18]
[342896875,1732198252110,-500.0,0.00041369,18]
[342896877,1732198252119,-767.33,0.00041369,18]
[342896879,1732198252129,-998.39,0.00041369,18]
[342896880,1732198252138,-1099.47,0.00041369,18]
[342896882,1732198252147,-1548.86,0.00041369,18]
[342896883,1732198252156,-492.75210575,0.00041369,18]
[342896885,1732198252167,-500.0,0.00041369,18]
[342896886,1732198252177,-1320.42,0.00041369,18]
[342896888,1732198252186,-800.02,0.00041369,18]
[342896889,1732198252195,-338.61086674,0.00041369,18]
[342896915,1732198252583,-500.0,0.00041095,18]
[342896917,1732198252593,-500.0,0.00041095,18]
[342896918,1732198252602,-1748.59372421,0.00041369,18]
[342896922,1732198252639,-1129.09210108,0.00041369,18]
[342896924,1732198252650,-1539.80758481,0.00041369,18]
[342896925,1732198252661,-1563.46311472,0.00041369,18]
[342896927,1732198252672,-6403.19917434,0.00041369,18]
[342896929,1732198252683,-12083.2534341,0.00041369,18]
[342896931,1732198252692,-500.0,0.00041369,18]
[342896932,1732198252703,-2379.46466843,0.00041369,18]
[342896940,1732198252811,-943.11533157,0.00041369,18]
[342896942,1732198252820,-500.0,0.00041369,18]
[342896944,1732198252829,-500.0,0.00041369,18]
[342896945,1732198252838,-500.0,0.00041369,18]
[342896947,1732198252847,-505.08,0.00041369,18]
[342896949,1732198252857,-500.0,0.00041369,18]
[342896950,1732198252866,-632.86,0.00041369,18]
[342896952,1732198252875,-1413.59,0.00041369,18]
[342896954,1732198252884,-500.0,0.00041369,18]
[342896955,1732198252894,-1603.37,0.00041369,18]
[342896957,1732198252903,-1141.92,0.00041369,18]
[342896958,1732198252911,-984.21,0.00041369,18]
[342896959,1732198252920,-500.0,0.00041369,18]
[342896960,1732198252928,-500.0,0.00041369,18]
[342896961,1732198252937,-3480.52,0.00041369,18]
[342896962,1732198252946,-289.940078,0.00041369,14]
[342896963,1732198252958,-1292.38,0.00041369,18]
[342896964,1732198252966,-520.61,0.00041369,18]
[342896965,1732198252975,-500.0,0.00041369,18]
[342896966,1732198252984,-2791.86,0.00041369,18]
[342896967,1732198252993,-500.0,0.00041369,18]
[342896968,1732198253002,-1886.02,0.00041369,18]
[342896969,1732198253011,-1013.08,0.00041369,18]
[342896970,1732198253020,-1015.9,0.00041369,18]
[342896971,1732198253029,-500.0,0.00041369,18]
[342896972,1732198253038,-546.51,0.00041369,18]
[342896973,1732198253047,-500.0,0.00041369,18]
[342896974,1732198253056,-3498.79,0.00041369,5]
[342896975,1732198253065,-500.0,0.00041369,18]
[342896976,1732198253074,-739.38,0.00041369,18]
[342896977,1732198253082,-500.0,0.00041369,18]
[342896978,1732198253091,-500.0,0.00041369,18]
[342896979,1732198253100,-803.9,0.00041369,18]
[342896980,1732198253109,-500.0,0.00041369,18]
[342896981,1732198253118,-1944.73,0.00041369,18]
[342896982,1732198253127,-754.96,0.00041369,18]
[342896983,1732198253136,-500.0,0.00041369,18]
[342896984,1732198253145,-500.0,0.00041369,18]
[342896985,1732198253154,-500.0,0.00041369,18]
[342896986,1732198253163,-1469.14,0.00041369,18]
[342896987,1732198253172,-686.55,0.00041369,18]
[342896988,1732198253180,-500.0,0.00041369,18]
[342896989,1732198253189,-1591.6,0.00041369,18]
[342896990,1732198253202,-579.65,0.00041369,18]
[342896991,1732198253211,-500.0,0.00041369,18]
[342896992,1732198253222,-500.0,0.00041369,18]
[342896993,1732198253231,-1329.32,0.00041369,18]
[342896994,1732198253240,-588.9,0.00041369,18]
[342896995,1732198253249,-500.0,0.00041369,18]
[342896996,1732198253258,-500.0,0.00041369,18]
[342896997,1732198253267,-500.0,0.00041369,18]
[342896998,1732198253276,-645.94,0.00041369,18]
[342896999,1732198253285,-500.0,0.00041369,18]
[342897000,1732198253294,-500.0,0.00041369,18]
[342897001,1732198253303,-500.0,0.00041369,18]
[342897002,1732198253311,-704.48,0.00041369,18]
[342897003,1732198253320,-629.74,0.00041369,18]
[342897004,1732198253329,-786.09,0.00041369,18]
[342897005,1732198253338,-1612.35,0.00041369,18]
[342897006,1732198253348,-698.74,0.00041369,18]
[342897007,1732198253357,-1209.96,0.00041369,18]
[342897008,1732198253367,-552.7,0.00041369,18]
[342897009,1732198253376,-549.61,0.00041369,18]
[342897010,1732198253385,-1104.57,0.00041369,18]
[342897011,1732198253395,-2349.29,0.00041369,18]
[342897012,1732198253404,-500.0,0.00041369,18]
[342897013,1732198253413,-500.0,0.00041369,18]
[342897014,1732198253422,-819.75,0.00041369,18]
[342897015,1732198253431,-1796.18,0.00041369,18]
[342897016,1732198253441,-3095.83,0.00041369,18]
[342897017,1732198253452,-578.08,0.00041369,18]
[342897018,1732198253462,-905.84,0.00041369,18]
[342897019,1732198253475,-500.0,0.00041369,18]
[342897020,1732198253484,-656.75,0.00041369,18]
[342897021,1732198253493,-628.41,0.00041369,18]
[342897022,1732198253503,-500.0,0.00041369,18]
[342897023,1732198253512,-154.526782,0.00041369,14]
[342897024,1732198253522,-500.0,0.00041369,18]
[342897025,1732198253531,-151.0,0.00041369,14]
[342897026,1732198253541,-712.5,0.00041369,18]
[342897027,1732198253551,-500.0,0.00041369,18]
[342897028,1732198253561,-631.52,0.00041369,18]
[342897029,1732198253570,-154.526782,0.00041369,14]
[342897030,1732198253579,-203.445184,0.00041369,14]
[342897031,1732198253588,-785.87,0.00041369,18]
[342897032,1732198253598,-500.0,0.00041369,18]
[342897033,1732198253607,-500.0,0.00041369,18]
[342897034,1732198253617,-819.56,0.00041369,18]
[342897035,1732198253627,-500.0,0.00041369,18]
[342897036,1732198253637,-500.0,0.00041369,18]
[342897037,1732198253646,-399.75555326,0.00041369,18]
[342897038,1732198253655,-689.23,0.00041369,18]
[342897039,1732198253664,-500.0,0.00041369,18]
[342897040,1732198253673,-500.0,0.00041369,18]
[342897041,1732198253683,-151.0,0.00041369,14]
[342897042,1732198253692,-500.0,0.00041369,18]
[342897043,1732198253702,-500.0,0.00041369,18]
[342897045,1732198253712,-500.0,0.00041369,18]
[342897046,1732198253720,-555.32,0.00041369,18]
[342897047,1732198253729,-1766.79,0.00041369,18]
[342897048,1732198253739,-500.0,0.00041369,18]
[342897049,1732198253748,-726.96,0.00041369,18]
[342897050,1732198253758,-608.64,0.00041369,18]
[342897051,1732198253767,-500.0,0.00041369,18]
[342897052,1732198253776,-500.0,0.00041369,18]
[342897053,1732198253785,-151.0,0.00041369,14]
[342897054,1732198253794,-1500.0,0.00041369,120]
[342897055,1732198253803,-228.65530204,0.00041369,18]
[342897056,1732198253813,-690.68,0.00041369,18]
[342897057,1732198253822,-500.0,0.00041369,18]
[342897058,1732198253831,-500.0,0.00041369,18]
[342897059,1732198253841,-500.0,0.00041369,18]
[342897060,1732198253850,-538.68,0.00041369,18]
[342897061,1732198253859,-698.05,0.00041369,18]
[342897062,1732198253869,-4215.77,0.00041369,18]
[342897063,1732198253878,-1572.44,0.00041369,18]
[342897064,1732198253887,-502.57,0.00041369,18]
[342897065,1732198253896,-500.0,0.00041369,18]
[342897066,1732198253906,-500.0,0.00041369,18]
[342897067,1732198253915,-500.0,0.00041369,18]
[342897068,1732198253925,-500.0,0.00041369,18]
[342897069,1732198253934,-638.9,0.00041369,18]
[342897070,1732198253944,-710.73,0.00041369,18]
[342897071,1732198253959,-1288.32,0.00041369,18]
[342897072,1732198253970,-2675.88,0.00041369,18]
[342897073,1732198253980,-500.0,0.00041369,18]
[342897074,1732198253989,-566.24,0.00041369,18]
[342897075,1732198253998,-608.19,0.00041369,18]
[342897076,1732198254008,-551.45,0.00041369,18]
[342897077,1732198254018,-500.0,0.00041369,18]
[342897078,1732198254027,-12865.10828782,0.00041369,18]
[342897079,1732198254043,-1213.45,0.00041369,18]
[342897080,1732198254055,-3543.30171218,0.00041369,18]
[342897081,1732198254065,-250.26907205,0.00041369,18]
[342897082,1732198254077,-249.73092795,0.00041369,18]
[342897083,1732198254087,-2876.3,0.00041369,18]
[342897084,1732198254096,-500.68779381,0.00041369,18]
[342897085,1732198254106,-500.0,0.00041369,18]
[342897086,1732198254116,-632.93,0.00041369,18]
[342897087,1732198254126,-500.0,0.00041369,18]
[342897088,1732198254135,-500.0,0.00041369,18]
[342897089,1732198254145,-500.0,0.00041369,18]
[342897090,1732198254154,-635.88,0.00041369,18]
[342897091,1732198254164,-498.72290325,0.00041369,18]
[342897092,1732198254173,-500.0,0.00041369,18]
[342897093,1732198254182,-500.0,0.00041369,18]
[342897094,1732198254191,-500.0,0.00041369,18]
[342897095,1732198254205,-638.21,0.00041369,18]
[342897096,1732198254214,-500.0,0.00041369,18]
[342897097,1732198254223,-1773.84,0.00041369,18]
[342897098,1732198254232,-2870.76,0.00041369,18]
[342897099,1732198254242,-626.92194728,0.00041369,18]
[342897100,1732198254252,-565.759243,0.00041369,14]
[342897101,1732198254262,-581.33,0.00041369,18]
[342897102,1732198254271,-500.0,0.00041369,18]
[342897103,1732198254281,-561.74,0.00041369,18]
[342897104,1732198254290,-801.11,0.00041369,18]
[342897105,1732198254300,-565.759243,0.00041369,14]
[342897106,1732198254309,-446.99516401,0.00041369,18]
[342897107,1732198254337,-506.19483599,0.00041369,18]
[342897108,1732198254347,-390.87516391,0.00041369,18]
[342897109,1732198254358,-109.12483609,0.00041369,18]
[342897110,1732198254369,-178.42182771,0.00041369,18]
[342897111,1732198254378,-500.0,0.00041369,18]
[342897112,1732198254387,-285.01942863,0.00041369,18]
[342897113,1732198254399,-214.98057137,0.00041369,18]
[342897114,1732198254408,-1251.13,0.00041369,18]
[342897115,1732198254418,-1712.35,0.00041369,18]
[342897116,1732198254427,-1395.96,0.00041369,18]
[342897117,1732198254437,-500.0,0.00041369,18]
[342897118,1732198254446,-1033.33,0.00041369,18]
[342897119,1732198254460,-1630.28,0.00041369,18]
[342897120,1732198254470,-1018.42,0.00041369,18]
[342897121,1732198254480,-500.0,0.00041369,18]
[342897122,1732198254490,-500.0,0.00041369,18]
[342897123,1732198254500,-2077.03,0.00041369,18]
[342897124,1732198254510,-2767.34,0.00041369,18]
[342897125,1732198254519,-500.0,0.00041369,18]
[342897126,1732198254529,-1513.27,0.00041369,18]
[342897127,1732198254539,-500.0,0.00041369,18]
[342897128,1732198254548,-500.0,0.00041369,18]
[342897129,1732198254558,-500.0,0.00041369,18]
[342897130,1732198254567,-500.0,0.00041369,18]
[342897131,1732198254576,-151.0,0.00041369,14]
[342897132,1732198254585,-575.2,0.00041369,18]
[342897133,1732198254595,-159.50942863,0.00041369,18]
[342897134,1732198254607,-340.49057137,0.00041369,18]
[342897135,1732198254616,-2698.0522939,0.00041369,18]
[342897136,1732198254628,-1233.6758005,0.00041369,18]
[342897137,1732198254640,-3197.3719056,0.00041369,18]
[342897138,1732198254649,-805.81,0.00041369,18]
[342897139,1732198254658,-1353.55,0.00041369,18]
[342897140,1732198254668,-500.0,0.00041369,18]
[342897141,1732198254677,-500.0,0.00041369,18]
[342897142,1732198254686,-500.0,0.00041369,18]
[342897143,1732198254695,-1904.12574313,0.00041369,18]
[342897144,1732198254955,-446.72425687,0.00041369,18]
[342897145,1732198254965,-136.54474313,0.00041369,18]
[342897146,1732198254984,-153.0,0.00040656,2]
[342897147,1732198254994,-375.49525687,0.00041369,18]
[342897148,1732198255003,-500.0,0.00041369,18]
[342897149,1732198255012,-500.0,0.00041369,18]
[342897150,1732198255023,-631.7,0.00041369,18]
[342897151,1732198255032,-500.0,0.00041369,18]
[342897152,1732198255041,-2531.95,0.00041369,18]
[342897153,1732198255050,-4529.79,0.00041369,18]
[342897154,1732198255059,-601.01,0.00041369,18]
[342897155,1732198255068,-5655.32,0.00041369,18]
[342897156,1732198255078,-500.0,0.00041369,18]
[342897157,1732198255087,-1427.22,0.00041369,18]
[342897158,1732198255096,-500.0,0.00041369,18]
[342897159,1732198255106,-735.8,0.00041369,18]
[342897160,1732198255115,-343.25127903,0.00041369,18]
[342897161,1732198255131,-156.74872097,0.00041369,18]
[342897162,1732198255139,-589.97054818,0.00041369,18]
[342897163,1732198255150,-15.45945182,0.00041369,18]
[342897164,1732198255160,-1229.87259244,0.00041369,18]
[342897165,1732198255170,-194.35740756,0.00041369,18]
[342897166,1732198255180,-500.0,0.00041369,18]
[342897167,1732198255189,-500.0,0.00041369,18]
[342897168,1732198255201,-500.0,0.00041369,18]
[342897169,1732198255210,-2425.96,0.00041369,18]
[342897170,1732198255220,-586.78,0.00041369,7]
[342897171,1732198255230,-2739.34,0.00041369,18]
[342897172,1732198255239,-1005.31,0.00041369,18]
[342897173,1732198255248,-500.0,0.00041369,18]
[342897174,1732198255258,-500.0,0.00041369,18]
[342897175,1732198255267,-500.0,0.00041369,18]
[342897176,1732198255276,-1247.72,0.00041369,18]
[342897177,1732198255285,-151.0,0.00041369,14]
[342897178,1732198255295,-500.0,0.00041369,18]
[342897179,1732198255304,-503.02,0.00041369,18]
[342897180,1732198255313,-500.0,0.00041369,18]
[342897181,1732198255323,-500.0,0.00041369,18]
[342897182,1732198255332,-500.0,0.00041369,18]
[342897183,1732198255341,-500.0,0.00041369,18]
[342897184,1732198255350,-600.45,0.00041369,18]
[342897185,1732198255360,-500.0,0.00041369,18]
[342897186,1732198255369,-8146.89,0.00041369,18]
[342897187,1732198255378,-500.0,0.00041369,18]
[342897188,1732198255387,-2235.84,0.00041369,18]
[342897189,1732198255396,-540.82,0.00041369,18]
[342897190,1732198255405,-500.0,0.00041369,18]
[342897191,1732198255414,-500.0,0.00041369,18]
[342897192,1732198255423,-500.0,0.00041369,18]
[342897193,1732198255432,-500.0,0.00041369,18]
[342897194,1732198255441,-859.08,0.00041369,18]
[342897195,1732198255451,-596.13,0.00041369,18]
[342897196,1732198255462,-611.31,0.00041369,18]
[342897197,1732198255474,-719.83,0.00041369,18]
[342897198,1732198255483,-1889.44,0.00041369,18]
[342897199,1732198255493,-500.0,0.00041369,18]
[342897200,1732198255502,-1901.71,0.00041369,18]
[342897201,1732198255513,-555.81,0.00041369,18]
[342897202,1732198255522,-500.0,0.00041369,18]
[342897203,1732198255531,-1085.78,0.00041369,18]
[342897204,1732198255542,-2152.15,0.00041369,18]
[342897205,1732198255552,-500.0,0.00041369,18]
[342897206,1732198255562,-500.0,0.00041369,18]
[342897207,1732198255571,-1706.77,0.00041369,18]
[342897208,1732198255581,-527.38,0.00041369,18]
[342897209,1732198255590,-500.0,0.00041369,18]
[342897210,1732198255599,-1728.26,0.00041369,18]
[342897211,1732198255610,-500.0,0.00041369,18]
[342897212,1732198255619,-500.0,0.00041369,18]
[342897213,1732198255630,-1637.0,0.00041369,18]
[342897214,1732198255640,-2073.38,0.00041369,18]
[342897215,1732198255650,-2223.97,0.00041369,18]
[342897216,1732198255661,-895.83,0.00041369,18]
[342897217,1732198255671,-2442.47,0.00041369,18]
[342897218,1732198255680,-500.0,0.00041369,18]
[342897219,1732198255689,-500.0,0.00041369,18]
[342897220,1732198255698,-500.0,0.00041369,2]
[342897221,1732198255709,-498.5855125,0.00041369,18]
[342897222,1732198255718,-982.61,0.00041369,18]
[342897223,1732198255727,-500.0,0.00041369,18]
[342897224,1732198255736,-1373.65,0.00041369,18]
[342897225,1732198255746,-500.0,0.00041369,18]
[342897226,1732198255756,-500.0,0.00041369,18]